bitfinex-derivatives/quotes_ETHF0:USTF0_20241105
["timestamp","ask_amount","ask_price","bid_price","bid_amount"]
[1730839532604,0.85935,2433.5,2433.0,4.68088]
[1730839532605,3.2078,2433.4,2433.0,3.2078]
[1730839532911,2.15276351,2433.2,2433.1,0.41101]
[1730839533115,2.56376351,2433.2,2433.1,0.41101]
[1730839533614,2.15276351,2433.2,2433.1,0.41101]
[1730839533813,2.15276351,2433.3,2433.0,3.2078]
[1730839534013,2.15276351,2433.3,2433.2,0.411]
[1730839534310,4.1096,2433.3,2433.2,0.411]
[1730839534911,4.52058,2433.3,2433.2,0.411]
[1730839535803,0.411,2433.2,2433.1,0.8763]
[1730839536107,0.872,2433.2,2433.1,0.8763]
[1730839536514,0.872,2433.2,2433.0,3.2078]
[1730839536515,3.02476351,2433.2,2433.0,3.2078]
[1730839536714,0.4717,2433.1,2433.0,3.61883]
[1730839537211,0.4717,2433.1,2433.0,0.41103]
[1730839537909,1.43861,2433.0,2432.4,1.25802147]
[1730839538114,13.04658247,2433.1,2432.4,1.25802147]
[1730839538115,2.15263544,2432.6,2432.4,1.05102147]
[1730839538414,0.9386,2432.5,2432.4,0.41113]
[1730839538806,0.9386,2432.5,2432.2,1.5765322]
[1730839539310,1.34972,2432.5,2432.2,1.9876822]
[1730839539516,1.34972,2432.5,2432.2,0.41115]
[1730839539910,0.9386,2432.5,2432.2,0.41115]
[1730839540118,0.41113,2432.4,2432.2,0.41115]
[1730839540305,1.34973,2432.5,2432.2,0.41115]
[1730839540613,0.41114,2432.4,2432.2,0.41115]
[1730839540820,0.9386,2432.5,2432.1,0.41117]
[1730839541117,0.41113,2432.4,2432.1,0.41117]
[1730839544218,0.9386,2432.5,2432.0,0.4638]
[1730839544415,0.9386,2432.5,2431.8,0.8932]
[1730839544716,0.41115,2432.4,2432.1,0.41117]
[1730839544918,41.21115,2432.3,2432.1,0.41117]
[1730839545623,0.41115,2432.3,2431.9,0.4392]
[1730839545825,0.41115,2432.3,2432.2,0.41117]
[1730839546017,0.9386,2432.5,2432.3,0.41115]
[1730839546018,0.41114,2432.4,2432.3,0.41115]
[1730839546213,0.41114,2432.4,2432.2,0.41116]
[1730839547420,1.34972,2432.5,2431.9,1.46723]
[1730839547727,1.34972,2432.5,2432.3,0.41114]
[1730839548216,1.34972,2432.5,2432.4,0.41113]
[1730839548718,0.9386,2432.5,2432.4,0.41113]
[1730839548918,1.34972,2432.5,2432.2,0.4359]
[1730839549221,1.34972,2432.5,2432.3,0.41114]
[1730839549617,0.41114,2432.4,2432.2,0.4359]
[1730839549926,0.41114,2432.4,2432.2,0.41116]
[1730839550719,0.41114,2432.4,2432.3,0.41115]
[1730839550918,0.9386,2432.5,2432.1,3.2078]
[1730839551124,0.41117,2432.2,2432.1,3.2078]
[1730839551324,0.41115,2432.4,2432.2,0.41117]
[1730839551622,0.41114,2432.4,2432.2,0.41117]
[1730839551824,0.9386,2432.5,2432.3,0.41114]
[1730839552021,0.9386,2432.5,2432.1,3.2078]
[1730839552228,0.4717,2432.5,2432.4,0.41113]
[1730839552723,3.2078,2432.9,2432.6,0.4111]
[1730839552919,6.21735607,2432.9,2432.1,3.2078]
[1730839553130,3.2078,2432.6,2432.4,0.41112]
[1730839553424,0.892,2432.5,2432.2,0.4408]
[1730839553622,0.41113,2432.4,2432.2,0.85196]
[1730839553829,0.892,2432.5,2432.2,0.4408]
[1730839554021,0.41113,2432.4,2432.2,0.85195]
[1730839555426,0.41117,2432.2,2431.9,0.41121]
[1730839555619,3.2078,2432.3,2431.8,0.4709]
[1730839555620,0.41121,2432.0,2431.8,0.4709]
[1730839555821,0.9028,2432.1,2431.7,3.2078]
[1730839556030,0.41123,2431.8,2431.7,3.2078]
[1730839556321,44.85951,2432.0,2431.7,3.61904]
[1730839556524,44.0078,2432.0,2431.8,0.41123]
[1730839556721,44.41901,2432.0,2431.8,0.4757]
[1730839557241,44.0078,2432.0,2431.8,0.88693]
[1730839557420,0.41124,2431.8,2431.5,3.61908]
[1730839557627,0.41124,2431.8,2431.5,4.09478]
[1730839557921,0.926,2431.7,2431.5,4.09478]
[1730839558322,0.926,2431.7,2431.5,3.6835]
[1730839559326,1.33726,2431.7,2431.5,3.6835]
[1730839559831,1.33726,2431.7,2431.5,3.2078]
[1730839560221,1.33726,2431.7,2431.4,0.84529]
[1730839560626,1.33726,2431.7,2431.4,0.8453]
[1730839561124,0.41129,2431.5,2431.2,0.88113]
[1730839561331,4.1338,2431.7,2431.2,0.4698]
[1730839561526,0.41127,2431.6,2431.3,0.41131]
[1730839561926,0.41127,2431.6,2431.2,0.4698]
[1730839562233,0.41127,2431.6,2431.4,0.4113]
[1730839562429,0.41127,2431.6,2431.3,0.41131]
[1730839562733,0.41129,2431.5,2431.2,0.88113]
[1730839563035,4.1338,2431.7,2431.3,0.41131]
[1730839563331,0.41129,2431.5,2431.2,0.41132]
[1730839563531,4.1338,2431.7,2431.1,3.2078]
[1730839563729,0.41128,2431.6,2431.3,0.41131]
[1730839564227,4.1338,2431.7,2431.1,3.2078]
[1730839564434,4.1338,2431.7,2431.2,0.41133]
[1730839564729,6.69945607,2431.7,2431.0,0.41136]
[1730839564929,0.41134,2431.2,2431.0,0.41136]
[1730839565133,0.91,2431.1,2431.0,0.41137]
[1730839565525,8.2314,2431.1,2430.5,3.2078]
[1730839565721,0.41139,2430.9,2430.7,0.41141]
[1730839566029,4.5838,2431.1,2430.5,3.678]
[1730839566224,2.56565607,2431.0,2430.2,4.3337]
[1730839566434,3.61925,2430.6,2430.2,0.4678]
[1730839566625,0.4563,2430.5,2430.4,0.41147]
[1730839566835,3.2078,2430.6,2430.2,0.4678]
[1730839567145,40.8,2430.8,2430.4,3.2078]
[1730839567522,40.8,2430.8,2430.7,0.41142]
[1730839568238,3.2078,2430.9,2430.4,3.2078]
[1730839568434,3.2078,2430.9,2430.8,0.4114]
[1730839568639,3.2078,2431.2,2430.7,3.2078]
[1730839568938,3.2078,2431.2,2431.0,0.41137]
[1730839569131,3.2078,2431.2,2431.1,0.41135]
[1730839569839,0.459,2431.3,2431.2,0.41134]
[1730839570229,0.4721,2431.4,2431.0,3.2078]
[1730839570533,0.4721,2431.4,2431.3,0.41132]
[1730839571037,0.459,2431.5,2431.4,0.4113]
[1730839571834,0.4501,2431.7,2431.3,3.2078]
[1730839572035,0.4285,2431.8,2431.7,0.41125]
[1730839572341,0.8786,2431.8,2431.7,0.41125]
[1730839572540,4.9906,2431.8,2431.7,0.41125]
[1730839573633,0.8786,2431.8,2431.7,0.41125]
[1730839574440,4.1228,2432.2,2432.1,0.41118]
[1730839574737,4.53397,2432.2,2432.0,0.41119]
[1730839574943,4.1228,2432.2,2432.0,0.41119]
[1730839575140,4.1228,2432.2,2432.1,0.41118]
[1730839575545,3.2078,2432.2,2432.1,0.41118]
[1730839575842,0.915,2432.5,2432.4,0.41113]
[1730839576445,0.915,2432.5,2432.3,0.41114]
[1730839576638,0.915,2432.5,2432.2,0.8845]
[1730839576942,0.915,2432.5,2432.4,0.41113]
[1730839579241,44.0078,2432.6,2432.5,0.41112]
[1730839579639,3.2078,2432.6,2432.5,0.41112]
[1730839581041,7.319,2432.6,2432.2,0.8845]
[1730839581242,3.2078,2432.6,2432.0,3.2078]
[1730839581450,0.41117,2432.2,2432.0,0.41119]
[1730839581749,0.923,2432.1,2432.0,0.41119]
[1730839582140,5.44619,2432.1,2431.8,0.41122]
[1730839582346,1.33419,2432.1,2431.7,0.8906]
[1730839582546,1.33419,2432.1,2431.9,0.41121]
[1730839582849,0.923,2432.1,2432.0,0.4112]
[1730839583142,0.923,2432.1,2431.7,4.0984]
[1730839583342,0.923,2432.1,2432.0,0.4112]
[1730839584749,1.33418,2432.1,2431.9,0.4112]
[1730839585447,0.923,2432.1,2432.0,0.4112]
[1730839586149,3.2078,2432.5,2432.3,0.41113]
[1730839586348,0.41114,2432.4,2432.2,0.41116]
[1730839587448,0.41114,2432.4,2432.3,0.41115]
[1730839587935,6.67685607,2432.4,2431.7,0.8906]
[1730839588141,0.41121,2432.0,2431.9,0.41122]
[1730839588341,3.2078,2432.2,2431.7,0.8906]
[1730839588544,4.1294,2432.5,2431.7,3.45625607]
[1730839588749,0.41114,2432.4,2432.3,0.41114]
[1730839588938,0.41114,2432.4,2432.2,0.41115]
[1730839589142,0.41114,2432.4,2431.9,3.2078]
[1730839589143,4.1294,2432.5,2431.9,3.2078]
[1730839589448,4.1294,2432.5,2431.8,1.02807]
[1730839589449,0.41115,2432.3,2432.2,0.41116]
[1730839590045,0.41116,2432.3,2432.1,0.41117]
[1730839590248,0.41113,2432.4,2432.1,0.41117]
[1730839590447,0.41117,2432.3,2432.1,0.41117]
[1730839590750,0.41117,2432.3,2432.2,0.41117]
[1730839590961,0.41117,2432.2,2432.1,0.41118]
[1730839591748,4.1294,2432.5,2431.7,1.91871]
[1730839591943,4.1294,2432.5,2431.7,4.48436607]
[1730839592147,4.54052,2432.5,2432.4,0.41113]
[1730839592847,4.54052,2432.5,2432.3,0.41114]
[1730839593646,4.1294,2432.5,2432.0,0.4344]
[1730839593852,4.1294,2432.5,2432.4,0.41113]
[1730839594440,4.54052,2432.5,2432.4,0.41113]
[1730839594652,4.1294,2432.5,2432.4,0.41113]
[1730839595840,46.16043544,2432.8,2432.2,6.64695607]
[1730839596151,0.4111,2432.6,2432.2,4.0813]
[1730839596455,0.4111,2432.6,2432.5,0.41112]
[1730839596659,0.41111,2432.6,2432.4,0.41113]
[1730839596852,0.4432,2432.5,2432.4,0.41113]
[1730839597842,0.85432,2432.5,2432.4,0.41113]
[1730839598042,0.4432,2432.5,2432.4,0.41113]
[1730839600259,44.0078,2432.8,2432.2,4.0813]
[1730839600260,44.41887,2432.8,2432.7,0.41108]
[1730839600452,44.86057,2432.8,2432.7,0.41108]
[1730839601061,41.65277,2432.8,2432.7,0.41108]
[1730839601254,44.86057,2432.8,2432.7,0.41108]
[1730839601452,44.4495,2432.8,2432.7,0.41108]
[1730839602360,3.6495,2432.8,2432.7,0.41108]
[1730839603150,2.15263544,2433.4,2433.3,0.41098]
[1730839603351,2.15263544,2433.5,2433.4,0.41096]
[1730839603849,0.9222,2433.7,2433.6,0.41093]
[1730839604549,3.61869,2433.9,2433.8,0.4109]
[1730839604550,3.2078,2433.9,2433.8,0.4109]
[1730839604952,44.0078,2433.9,2433.8,0.4109]
[1730839605160,0.9189,2434.0,2433.9,0.41088]
[1730839605354,0.9189,2434.0,2433.8,0.41089]
[1730839605558,41.7189,2434.0,2433.8,0.41089]
[1730839606069,42.12977,2434.0,2433.7,0.4109]
[1730839606361,42.12977,2434.0,2433.2,1.02747]
[1730839606362,3.2078,2433.9,2433.1,3.4148]
[1730839606663,3.2078,2433.9,2433.4,0.41095]
[1730839606664,0.41091,2433.7,2433.4,0.41095]
[1730839607251,0.41094,2433.6,2433.3,0.41097]
[1730839608055,3.2078,2433.9,2433.4,0.41095]
[1730839608056,0.41092,2433.7,2433.4,0.41095]
[1730839608257,0.41092,2433.7,2433.2,2.56565607]
[1730839608459,0.41092,2433.7,2433.5,0.41095]
[1730839608658,3.2078,2433.9,2433.2,2.56565607]
[1730839608963,0.4109,2433.8,2433.5,0.41094]
[1730839609861,44.9267,2434.0,2433.4,2.56565607]
[1730839610064,44.9267,2434.0,2433.4,2.97660607]
[1730839610251,0.41093,2433.6,2433.4,2.97660607]
[1730839610457,0.41093,2433.7,2433.4,2.97660607]
[1730839610764,0.41092,2433.7,2433.4,2.97660607]
[1730839610960,44.9267,2434.0,2433.4,2.56565607]
[1730839611166,0.41093,2433.6,2433.4,2.97660607]
[1730839611862,0.41092,2433.7,2433.5,0.41094]
[1730839612166,0.41093,2433.6,2433.4,2.56565607]
[1730839612358,0.41093,2433.6,2433.4,2.97660607]
[1730839612952,3.2078,2433.9,2433.2,3.2078]
[1730839613165,0.41094,2433.6,2433.4,0.41095]
[1730839613855,3.2078,2433.9,2433.2,3.2078]
[1730839614053,3.61869,2433.9,2433.7,0.41091]
[1730839614265,3.2078,2433.9,2433.4,2.56565607]
[1730839614464,3.61869,2433.9,2433.8,0.4109]
[1730839614656,3.2078,2433.9,2433.8,0.4109]
[1730839616057,42.12977,2434.0,2433.8,0.4109]
[1730839616262,0.41088,2433.9,2433.8,0.4109]
[1730839616555,7.3166,2433.9,2433.2,3.2078]
[1730839616763,7.3166,2433.9,2433.1,3.84852365]
[1730839616764,0.41096,2433.5,2433.3,0.41097]
[1730839617057,0.41097,2433.4,2433.2,0.41099]
[1730839617269,3.2078,2433.6,2433.1,4.0935]
[1730839617457,0.41096,2433.4,2433.3,0.41097]
[1730839617653,1.27945,2433.5,2433.1,4.0935]
[1730839618049,1.27945,2433.5,2433.3,0.41097]
[1730839618255,1.27945,2433.5,2433.1,4.0935]
[1730839618256,0.8685,2433.5,2433.1,4.0935]
[1730839618458,0.41096,2433.4,2433.3,0.41097]
[1730839619249,1.27946,2433.5,2433.3,0.41097]
[1730839619660,0.8685,2433.5,2433.1,4.0935]
[1730839619851,0.8685,2433.5,2433.4,0.41096]
[1730839620250,0.8685,2433.5,2433.1,6.65915607]
[1730839620455,1.27946,2433.5,2433.3,0.41097]
[1730839620662,0.8685,2433.5,2433.4,0.41096]
[1730839621159,0.4587,2433.8,2433.1,6.65915607]
[1730839621464,0.41093,2433.6,2433.1,6.65915607]
[1730839621760,0.41091,2433.8,2433.6,0.41092]
[1730839621965,4.0812,2433.9,2433.1,6.65915607]
[1730839622166,4.0812,2433.9,2433.7,0.4109]
[1730839622361,0.41091,2433.8,2433.6,0.41092]
[1730839622962,0.41092,2433.7,2433.5,0.41093]
[1730839623170,0.4109,2433.8,2433.6,0.41093]
[1730839623468,0.8734,2433.9,2433.8,0.4109]
[1730839623667,3.61864,2434.2,2434.0,0.41085]
[1730839624161,0.4628,2434.1,2434.0,0.41086]
[1730839624872,0.87365,2434.1,2433.9,0.41087]
[1730839625065,0.41086,2434.0,2433.9,0.41087]
[1730839625271,0.85507,2434.0,2433.8,0.41088]
[1730839625673,0.85507,2434.0,2433.9,0.41088]
[1730839626166,0.4442,2434.0,2433.9,0.41088]
[1730839626675,0.85506,2434.0,2433.9,0.41088]
[1730839626970,0.85506,2434.0,2433.8,0.41089]
[1730839627573,0.4442,2434.0,2433.7,0.4286]
[1730839627765,0.41093,2433.6,2433.5,3.2078]
[1730839628870,0.41097,2433.4,2433.2,0.411]
[1730839629262,0.41097,2433.4,2433.3,0.41098]
[1730839629462,41.21097,2433.4,2433.2,0.41098]
[1730839629661,0.9151,2433.5,2433.1,2.56565607]
[1730839630165,44.0078,2433.6,2433.5,0.41095]
[1730839630678,3.2078,2433.6,2433.5,0.41095]
[1730839631265,0.41095,2433.5,2433.3,0.41097]
[1730839631668,0.41095,2433.5,2433.4,0.41096]
[1730839631874,3.2078,2433.6,2433.5,0.41095]
[1730839632067,41.21092,2433.7,2433.1,3.00325607]
[1730839632283,41.21092,2433.7,2433.5,0.41094]
[1730839632968,41.21092,2433.7,2433.2,1.0275]
[1730839633164,41.21092,2433.7,2433.6,0.41093]
[1730839634370,41.21092,2433.7,2433.5,0.41094]
[1730839634371,0.41094,2433.6,2433.5,0.41094]
[1730839635677,41.21092,2433.7,2433.6,0.41093]
[1730839635875,0.9339,2433.8,2433.4,0.4633]
[1730839636072,0.9339,2433.8,2433.7,0.41091]
[1730839636272,3.2078,2434.0,2433.6,2.56565607]
[1730839636273,3.61867,2434.0,2433.9,0.41088]
[1730839637278,0.41088,2433.9,2433.8,0.41089]
[1730839637579,0.41092,2433.7,2433.5,0.41095]
[1730839637768,0.41092,2433.7,2433.4,3.50025607]
[1730839638174,0.41092,2433.7,2433.6,0.41093]
[1730839638773,0.41088,2433.9,2433.5,0.41094]
[1730839639079,0.41093,2433.7,2433.5,0.41094]
[1730839639280,0.4656,2433.6,2433.5,0.41094]
[1730839639583,0.9144,2433.6,2433.5,0.41094]
[1730839640871,3.2078,2434.0,2433.5,4.1096]
[1730839641070,3.2078,2434.0,2433.9,0.41088]
[1730839641267,1.33206,2434.1,2433.9,0.41088]
[1730839641472,0.41086,2434.0,2433.9,0.41088]
[1730839642279,0.41086,2434.0,2433.8,0.41089]
[1730839642675,0.41086,2434.0,2433.6,2.56565607]
[1730839642676,0.41086,2434.0,2433.9,0.41088]
[1730839643270,1.33206,2434.1,2433.9,0.41088]
[1730839643680,1.33206,2434.1,2433.8,0.41089]
[1730839643681,0.41086,2434.0,2433.8,0.41089]
[1730839643868,0.9212,2434.1,2433.6,2.56565607]
[1730839644074,0.41087,2434.0,2433.6,2.56565607]
[1730839644273,3.07383544,2434.1,2433.6,2.56565607]
[1730839644470,4.10097544,2434.1,2433.6,0.41092]
[1730839644674,0.41093,2433.6,2433.5,0.41094]
[1730839645376,0.41092,2433.7,2433.5,0.41094]
[1730839645578,0.4667,2433.6,2433.5,0.41094]
[1730839646372,0.87763,2433.6,2433.5,0.41094]
[1730839646575,1.33703,2433.6,2433.5,0.41094]
[1730839646771,1.33703,2433.6,2433.4,3.43991607]
[1730839646980,1.33703,2433.6,2433.0,3.61882]
[1730839646981,0.41099,2433.3,2433.0,3.61882]
[1730839647296,2.56360544,2433.4,2433.1,0.41101]
[1730839647478,2.56361544,2433.3,2433.1,0.41101]
[1730839647673,2.56361544,2433.3,2433.0,6.18447607]
[1730839647873,0.41098,2433.3,2433.0,6.18447607]
[1730839648077,2.56361544,2433.3,2433.0,6.18447607]
[1730839648277,2.15263544,2433.4,2433.2,0.411]
[1730839648488,2.15263544,2433.3,2433.2,0.411]
[1730839648977,2.15263544,2433.3,2432.9,0.8634692]
[1730839648978,0.41101,2433.1,2432.9,0.8634692]
[1730839649175,2.56521359,2433.1,2432.9,0.8634692]
[1730839649376,0.4715,2433.0,2432.9,0.8634692]
[1730839649576,0.4715,2433.0,2432.9,0.41105]
[1730839649779,0.4715,2433.0,2432.9,0.95844793]
[1730839650281,2.15420359,2433.2,2433.1,0.41101]
[1730839650478,2.15420359,2433.2,2433.1,2.97666607]
[1730839650681,2.15420359,2433.3,2433.2,0.411]
[1730839651885,2.15420359,2433.3,2433.2,0.8402]
[1730839652081,2.15420359,2433.3,2433.2,4.9498]
[1730839652288,3.1307943,2433.5,2433.3,0.41098]
[1730839652289,2.15420359,2433.4,2433.3,0.41098]
[1730839653077,2.15420359,2433.4,2433.3,7.08623607]
[1730839653284,2.15420359,2433.5,2433.4,0.41096]
[1730839653589,2.15420359,2433.6,2433.5,0.41095]
[1730839653978,2.15420359,2433.7,2433.6,0.41093]
[1730839654183,2.15420359,2433.7,2433.6,2.97658607]
[1730839654388,2.15420359,2433.7,2433.6,7.08538607]
[1730839654584,2.15420359,2433.7,2433.6,2.97658607]
[1730839655890,2.15420359,2433.7,2433.6,2.56565607]
[1730839656084,2.56511359,2433.7,2433.5,0.41094]
[1730839656393,2.15420359,2433.7,2433.6,0.41093]
[1730839657079,2.15420359,2433.7,2433.3,5.77345607]
[1730839657280,0.41095,2433.5,2433.3,2.97662607]
[1730839657584,0.41098,2433.3,2433.2,1.658]
[1730839657784,2.56518359,2433.3,2433.2,1.658]
[1730839659293,2.56518359,2433.3,2433.2,2.069]
[1730839659586,2.56518359,2433.3,2433.2,1.658]
[1730839659791,2.15420359,2433.3,2433.0,0.41102]
[1730839659991,0.41101,2433.2,2433.0,0.41102]
[1730839661188,0.41101,2433.1,2433.0,0.41102]
[1730839661592,0.41101,2433.2,2432.9,0.4399]
[1730839661891,2.56519359,2433.3,2433.2,0.411]
[1730839662085,2.56519359,2433.3,2432.9,0.4399]
[1730839662301,0.411,2433.2,2433.1,0.41101]
[1730839662491,2.56519359,2433.3,2433.1,0.41101]
[1730839662687,0.411,2433.2,2432.9,0.4399]
[1730839662993,0.411,2433.2,2433.0,0.41102]
[1730839663393,0.41101,2433.1,2433.0,0.41102]
[1730839663688,2.15420359,2433.2,2432.9,0.4399]
[1730839663883,0.41105,2432.9,2432.8,3.2078]
[1730839664490,0.87365,2432.9,2432.8,3.2078]
[1730839664991,0.4626,2432.9,2432.8,3.61886]
[1730839665189,42.95420359,2433.0,2432.8,5.77345607]
[1730839665390,3.03721359,2433.1,2432.9,0.41105]
[1730839665592,2.62620359,2433.1,2432.9,0.41105]
[1730839665783,0.41103,2433.0,2432.8,6.18450607]
[1730839666087,2.62620359,2433.1,2432.8,5.77345607]
[1730839666290,0.472,2433.1,2433.0,0.41103]
[1730839666594,5.36200359,2433.2,2433.1,0.41101]
[1730839666799,3.2078,2433.2,2433.1,0.41101]
[1730839668698,2.15420359,2433.4,2433.3,0.41098]
[1730839668999,2.56515359,2433.5,2433.3,0.41098]
[1730839669197,0.41096,2433.4,2433.3,0.41098]
[1730839669499,2.56515359,2433.5,2433.4,0.41096]
[1730839669694,2.15420359,2433.5,2433.4,0.41096]
[1730839670199,5.36200359,2433.6,2433.5,0.41095]
[1730839670898,2.15420359,2433.6,2433.5,0.84555]
[1730839671393,2.15420359,2433.8,2433.7,0.41091]
[1730839671598,0.8977,2434.1,2433.8,0.4109]
[1730839671599,2.15420359,2433.9,2433.8,0.4109]
[1730839671898,2.15420359,2434.0,2433.9,0.41088]
[1730839672096,2.15420359,2434.0,2433.8,0.41089]
[1730839672297,2.56508359,2433.9,2433.7,3.6187]
[1730839672498,2.15420359,2433.9,2433.8,0.4109]
[1730839673094,2.15420359,2434.0,2433.7,3.2078]
[1730839673401,2.15420359,2433.9,2433.8,0.4109]
[1730839674194,2.56507359,2434.0,2433.8,0.4109]
[1730839674589,2.15420359,2434.0,2433.8,0.4109]
[1730839674894,2.15420359,2434.0,2433.7,3.6187]
[1730839675094,2.15420359,2434.0,2433.7,3.2078]
[1730839675293,2.56507359,2434.0,2433.8,0.41089]
[1730839676496,2.15420359,2434.0,2433.9,0.41088]
[1730839677200,2.56507359,2434.0,2433.8,0.41089]
[1730839678896,2.15420359,2434.0,2433.7,3.2078]
[1730839679099,2.15420359,2434.0,2433.9,0.41088]
[1730839679300,2.6907943,2434.2,2434.0,0.41085]
[1730839679301,0.41083,2434.2,2434.0,0.41085]
[1730839679899,2.15420359,2434.3,2433.9,0.4742]
[1730839680204,3.03430359,2434.4,2434.2,0.41083]
[1730839680897,43.41690359,2434.5,2434.3,2.56565607]
[1730839681097,0.41079,2434.4,2434.3,2.56565607]
[1730839681306,0.41079,2434.4,2434.2,0.41082]
[1730839681603,43.82769359,2434.5,2434.3,0.4108]
[1730839682197,0.41081,2434.4,2434.2,0.41082]
[1730839682396,43.41690359,2434.5,2434.1,2.56565607]
[1730839682701,0.41079,2434.4,2434.1,2.56565607]
[1730839683009,0.41079,2434.4,2434.2,0.41081]
[1730839683196,0.41079,2434.4,2434.2,0.41082]
[1730839683197,0.4108,2434.4,2434.2,0.41082]
[1730839683603,0.41081,2434.3,2434.2,0.41082]
[1730839683902,41.2627,2434.5,2434.2,0.41082]
[1730839684100,41.2627,2434.5,2434.1,2.56565607]
[1730839684101,0.4108,2434.4,2434.3,0.41081]
[1730839684897,41.67349,2434.5,2434.4,0.41079]
[1730839685299,2.59280359,2434.6,2434.3,2.56565607]
[1730839685500,0.4386,2434.6,2434.5,0.41078]
[1730839686401,2.61330359,2434.8,2434.5,6.67285607]
[1730839686699,2.61330359,2434.8,2434.7,0.41074]
[1730839686700,0.4591,2434.8,2434.7,0.41074]
[1730839687605,0.86983,2434.8,2434.6,0.41075]
[1730839688105,5.36200359,2435.0,2434.6,4.1072]
[1730839688307,5.36200359,2435.0,2434.9,2.97636607]
[1730839688308,3.2078,2435.0,2434.9,2.97636607]
[1730839688496,4.84499789,2435.5,2434.9,2.56565607]
[1730839688497,3.2078,2435.3,2434.9,2.56565607]
[1730839688702,3.61846,2435.3,2435.0,0.84228]
[1730839689200,3.2078,2435.3,2435.1,0.41067]
[1730839689401,3.2078,2435.3,2435.0,0.4316]
[1730839689609,3.2078,2435.3,2435.2,0.41066]
[1730839689806,0.4347,2435.5,2435.0,0.4316]
[1730839689807,41.2347,2435.5,2435.4,0.41063]
[1730839690311,0.4347,2435.5,2435.4,0.41063]
[1730839690807,0.4347,2435.5,2435.3,0.41064]
[1730839691001,0.4347,2435.5,2435.2,2.56565607]
[1730839691309,0.4347,2435.5,2435.4,0.41063]
[1730839691604,0.4347,2435.5,2435.3,0.41063]
[1730839692011,0.4347,2435.5,2435.2,2.97630607]
[1730839692217,0.4347,2435.5,2435.2,2.56565607]
[1730839692711,0.4347,2435.5,2435.3,0.41063]
[1730839692906,0.41065,2435.3,2435.0,6.61573607]
[1730839693112,0.4347,2435.5,2435.3,0.41063]
[1730839693113,0.8689,2435.5,2435.3,0.41063]
[1730839693411,0.4347,2435.5,2435.4,0.41063]
[1730839694110,41.2756,2435.6,2435.3,0.4483]
[1730839694316,0.4756,2435.6,2435.5,2.97626607]
[1730839695013,0.01506,2435.7,2435.6,0.41059]
[1730839695413,3.61828,2436.3,2436.0,0.41051]
[1730839695605,3.61828,2436.3,2435.6,7.7784]
[1730839695606,1.35439,2436.2,2436.1,2.56565607]
[1730839695807,41.7439,2436.2,2436.1,2.56565607]
[1730839696014,0.9439,2436.2,2436.1,2.97616607]
[1730839696213,3.2078,2436.6,2436.4,0.41045]
[1730839696417,0.9014,2436.5,2436.4,2.56565607]
[1730839696618,5.41584,2436.5,2436.4,2.56565607]
[1730839697009,5.0054,2436.5,2436.4,2.56565607]
[1730839697318,5.41584,2436.5,2436.4,2.56565607]
[1730839698116,5.0054,2436.5,2436.2,2.56565607]
[1730839698318,0.41047,2436.4,2436.2,2.56565607]
[1730839698515,0.9014,2436.5,2435.9,2.56565607]
[1730839698717,0.41052,2436.0,2435.9,2.56565607]
[1730839699016,0.41052,2436.0,2435.5,0.9253]
[1730839699017,0.41056,2435.8,2435.7,2.56565607]
[1730839699715,41.21056,2435.8,2435.7,2.56565607]
[1730839700411,45.31616,2435.8,2435.7,2.56565607]
[1730839701207,44.9056,2435.8,2435.7,2.97623607]
[1730839701516,40.8,2435.8,2435.7,2.56565607]
[1730839701717,45.31616,2435.8,2435.7,2.56565607]
[1730839702209,44.9056,2435.8,2435.7,2.97623607]
[1730839702409,40.8,2435.8,2435.7,2.97623607]
[1730839702806,44.9056,2435.8,2435.7,2.97623607]
[1730839703017,44.9056,2435.8,2435.7,2.56565607]
[1730839703217,45.31616,2435.8,2435.7,2.56565607]
[1730839703924,44.9056,2435.8,2435.7,2.97623607]
[1730839704114,40.8,2435.8,2435.7,2.97623607]
[1730839704614,0.41056,2435.8,2435.7,2.56565607]
[1730839704818,0.4632,2435.9,2435.7,2.56565607]
[1730839705014,44.0078,2436.0,2435.7,2.56565607]
[1730839705213,0.9146,2436.2,2436.1,0.41051]
[1730839705411,3.2078,2436.6,2435.9,2.56565607]
[1730839705714,0.4575,2436.5,2436.4,0.41046]
[1730839706222,3.2078,2436.6,2436.5,0.41044]
[1730839706613,0.8955,2436.9,2436.5,3.2078]
[1730839706818,0.8955,2436.9,2436.8,0.41039]
[1730839707117,0.8955,2436.9,2436.5,3.2078]
[1730839707332,3.2078,2437.1,2436.8,2.56565607]
[1730839707517,3.2078,2437.1,2436.9,0.41037]
[1730839708224,3.2078,2437.1,2436.8,2.56565607]
[1730839708519,3.2078,2437.1,2436.8,2.97603607]
[1730839708922,3.2078,2437.1,2436.9,0.41037]
[1730839709133,3.2078,2437.1,2436.8,2.56565607]
[1730839709316,3.2078,2437.1,2436.8,2.97602607]
[1730839712217,0.8958,2437.2,2437.1,2.97599607]
[1730839712608,0.8958,2437.2,2437.1,2.56565607]
[1730839713017,1.30612,2437.2,2437.1,2.56565607]
[1730839713326,1.30612,2437.2,2436.8,3.2078]
[1730839713327,8.2068,2437.2,2436.8,2.56565607]
[1730839713515,4.1036,2437.2,2436.8,2.56565607]
[1730839713708,0.41037,2436.9,2436.8,2.56565607]
[1730839715218,4.1036,2437.2,2436.8,2.56565607]
[1730839715420,4.51393,2437.2,2437.1,2.56565607]
[1730839715920,1.30613,2437.2,2437.1,2.56565607]
[1730839716824,0.41036,2437.0,2436.9,2.56565607]
[1730839717121,0.8958,2437.2,2436.9,2.56565607]
[1730839717320,1.30613,2437.2,2436.9,2.56565607]
[1730839717520,0.8958,2437.2,2437.0,0.41035]